[Event "*** Titled Tuesday Blitz"]
[Site "Chess.com"]
[Date "2021.02.02"]
[Round "8"]
[White "Joseacorrea"]
[Black "Pantata007"]
[Result "0-1"]
[WhiteElo "2016"]
[BlackElo "2234"]
[TimeControl "180+1"]
[EndTime "11:30:34 PST"]
[Termination "Pantata007 won by checkmate"]

1. d4 {[%clk 0:03:00.9]} 1... d5 {[%clk 0:02:58.2]} 2. e3 {[%clk 0:03:01.4]}
2... Nf6 {[%clk 0:02:57.7]} 3. Bd3 {[%clk 0:03:01.9]} 3... Nc6 {[%clk
0:02:55.5]} 4. f4 {[%clk 0:03:01.9]} 4... Nb4 {[%clk 0:02:53.4]} 5. Be2 {[%clk
0:03:01.4]} 5... Bf5 {[%clk 0:02:52.6]} 6. Na3 {[%clk 0:03:01.1]} 6... c5 {[%clk
0:02:47.3]} 7. c3 {[%clk 0:03:00.8]} 7... Nc6 {[%clk 0:02:47]} 8. Nf3 {[%clk
0:03:00.3]} 8... e6 {[%clk 0:02:46.7]} 9. O-O {[%clk 0:02:59.8]} 9... Be7 {[%clk
0:02:39.2]} 10. Ne5 {[%clk 0:02:53.6]} 10... O-O {[%clk 0:02:36.8]} 11. Rf3
{[%clk 0:02:51]} 11... cxd4 {[%clk 0:02:21.7]} 12. exd4 {[%clk 0:02:50.6]} 12...
Bxa3 {[%clk 0:02:18.7]} 13. bxa3 {[%clk 0:02:48.8]} 13... Nxe5 {[%clk 0:02:17]}
14. fxe5 {[%clk 0:02:48.1]} 14... Ne4 {[%clk 0:02:14.2]} 15. Re3 {[%clk
0:02:22.2]} 15... Rc8 {[%clk 0:02:08.1]} 16. Bb2 {[%clk 0:02:17.5]} 16... Qb6
{[%clk 0:01:46]} 17. Qb3 {[%clk 0:02:16.7]} 17... h6 {[%clk 0:01:11.9]} 18. Rd1
{[%clk 0:02:04.1]} 18... Rc7 {[%clk 0:01:04.6]} 19. Bd3 {[%clk 0:01:52.6]} 19...
Qxb3 {[%clk 0:00:59.3]} 20. axb3 {[%clk 0:01:51.8]} 20... Nxc3 {[%clk
0:00:54.6]} 21. Bxc3 {[%clk 0:01:37.5]} 21... Rxc3 {[%clk 0:00:52.4]} 22. Kf2
{[%clk 0:01:25.6]} 22... Rxb3 {[%clk 0:00:49.2]} 23. Bxf5 {[%clk 0:01:22.6]}
23... Rxe3 {[%clk 0:00:48.4]} 24. Kxe3 {[%clk 0:01:19.1]} 24... exf5 {[%clk
0:00:49.3]} 25. Rb1 {[%clk 0:01:18.2]} 25... b6 {[%clk 0:00:47.8]} 26. Rb5
{[%clk 0:01:18.7]} 26... Rd8 {[%clk 0:00:47]} 27. a4 {[%clk 0:01:17.4]} 27...
Rd7 {[%clk 0:00:40.4]} 28. Kf4 {[%clk 0:01:13.8]} 28... g6 {[%clk 0:00:39.4]}
29. h3 {[%clk 0:01:08.2]} 29... Kf8 {[%clk 0:00:34.1]} 30. a5 {[%clk 0:01:02.6]}
30... bxa5 {[%clk 0:00:34.1]} 31. Rxa5 {[%clk 0:01:03.5]} 31... Ke7 {[%clk
0:00:34.4]} 32. Ra6 {[%clk 0:01:02.1]} 32... Kd8 {[%clk 0:00:28.6]} 33. e6
{[%clk 0:00:59]} 33... fxe6 {[%clk 0:00:27.8]} 34. Rxe6 {[%clk 0:00:57.8]} 34...
g5+ {[%clk 0:00:16.5]} 35. Kxf5 {[%clk 0:00:56.3]} 35... Rf7+ {[%clk 0:00:14.8]}
36. Ke5 {[%clk 0:00:52.6]} 36... Re7 {[%clk 0:00:11.4]} 37. Kxd5 {[%clk
0:00:49.6]} 37... Rxe6 {[%clk 0:00:11.1]} 38. Kxe6 {[%clk 0:00:48.4]} 38... a5
{[%clk 0:00:11.3]} 39. Kd5 {[%clk 0:00:48.8]} 39... Kd7 {[%clk 0:00:11.1]} 40.
Kc5 {[%clk 0:00:48.8]} 40... a4 {[%clk 0:00:09.1]} 41. Kb4 {[%clk 0:00:47.4]}
41... Kd6 {[%clk 0:00:09.5]} 42. Kxa4 {[%clk 0:00:47.8]} 42... Kd5 {[%clk
0:00:09.9]} 43. Kb4 {[%clk 0:00:46.3]} 43... Kxd4 {[%clk 0:00:10.2]} 44. g4
{[%clk 0:00:43.2]} 44... Ke4 {[%clk 0:00:10]} 45. Kc5 {[%clk 0:00:44.1]} 45...
Kf4 {[%clk 0:00:10]} 46. Kd6 {[%clk 0:00:44.4]} 46... Kg3 {[%clk 0:00:10.3]} 47.
Ke6 {[%clk 0:00:45.3]} 47... Kxh3 {[%clk 0:00:10.5]} 48. Kf5 {[%clk 0:00:45.1]}
48... Kh4 {[%clk 0:00:10.5]} 49. Kg6 {[%clk 0:00:44.7]} 49... Kxg4 {[%clk
0:00:11.4]} 50. Kxh6 {[%clk 0:00:45.2]} 50... Kh4 {[%clk 0:00:10.5]} 51. Kg6
{[%clk 0:00:44.6]} 51... g4 {[%clk 0:00:11.4]} 52. Kf5 {[%clk 0:00:45.4]} 52...
g3 {[%clk 0:00:11.8]} 53. Kf4 {[%clk 0:00:46.3]} 53... g2 {[%clk 0:00:12.7]} 54.
Kf5 {[%clk 0:00:46.2]} 54... g1=Q {[%clk 0:00:13.6]} 55. Kf6 {[%clk 0:00:46.5]}
55... Qf2+ {[%clk 0:00:08.5]} 56. Kg7 {[%clk 0:00:46.3]} 56... Qg3+ {[%clk
0:00:08.4]} 57. Kh6 {[%clk 0:00:47.2]} 57... Qf4+ {[%clk 0:00:08.2]} 58. Kg6
{[%clk 0:00:47.1]} 58... Qg5+ {[%clk 0:00:07.6]} 59. Kh7 {[%clk 0:00:47.5]}
59... Qh5+ {[%clk 0:00:06.2]} 60. Kg7 {[%clk 0:00:47.3]} 60... Kg5 {[%clk
0:00:06.3]} 61. Kg8 {[%clk 0:00:45.9]} 61... Qg6+ {[%clk 0:00:06.1]} 62. Kh8
{[%clk 0:00:45.6]} 62... Qc6 {[%clk 0:00:06]} 63. Kg8 {[%clk 0:00:44.8]} 63...
Qc7 {[%clk 0:00:04.7]} 64. Kf8 {[%clk 0:00:44.8]} 64... Kf6 {[%clk 0:00:04.8]}
65. Ke8 {[%clk 0:00:45.1]} 65... Qe7# {[%clk 0:00:05.1]} 0-1

[Event "*** Titled Tuesday Blitz"]
[Site "Chess.com"]
[Date "2021.02.02"]
[Round "8"]
[White "AntonovaNadezhda"]
[Black "Larciano"]
[Result "0-1"]
[WhiteElo "2142"]
[BlackElo "1760"]
[TimeControl "180+1"]
[EndTime "11:30:34 PST"]
[Termination "Larciano won on time"]

1. d4 {[%clk 0:02:59]} 1... Nf6 {[%clk 0:02:59.4]} 2. Nf3 {[%clk 0:02:59.4]}
2... e6 {[%clk 0:02:59.8]} 3. Nbd2 {[%clk 0:02:58.9]} 3... c5 {[%clk 0:02:58.8]}
4. e3 {[%clk 0:02:58.5]} 4... b6 {[%clk 0:02:58.9]} 5. b3 {[%clk 0:02:57.9]}
5... Bb7 {[%clk 0:02:58.8]} 6. Bb2 {[%clk 0:02:58.5]} 6... Be7 {[%clk 0:02:59]}
7. Bd3 {[%clk 0:02:58.7]} 7... O-O {[%clk 0:02:59]} 8. O-O {[%clk 0:02:58.8]}
8... d6 {[%clk 0:02:58.5]} 9. Re1 {[%clk 0:02:58.6]} 9... Nbd7 {[%clk
0:02:58.5]} 10. a3 {[%clk 0:02:57.5]} 10... a6 {[%clk 0:02:58.2]} 11. Qe2 {[%clk
0:02:56.9]} 11... Re8 {[%clk 0:02:54]} 12. c4 {[%clk 0:02:55.9]} 12... Nf8
{[%clk 0:02:53]} 13. e4 {[%clk 0:02:54.6]} 13... cxd4 {[%clk 0:02:41.8]} 14.
Nxd4 {[%clk 0:02:47]} 14... Ng6 {[%clk 0:02:31.8]} 15. g3 {[%clk 0:02:30.7]}
15... Rc8 {[%clk 0:02:03.9]} 16. Rad1 {[%clk 0:02:28.7]} 16... Qc7 {[%clk
0:02:03.7]} 17. f4 {[%clk 0:02:19.8]} 17... Ba8 {[%clk 0:02:00.8]} 18. N4f3
{[%clk 0:02:16.3]} 18... Qb7 {[%clk 0:01:56.2]} 19. Bb1 {[%clk 0:02:07]} 19...
Bf8 {[%clk 0:01:51.2]} 20. h4 {[%clk 0:01:52.5]} 20... b5 {[%clk 0:01:15.3]} 21.
Ng5 {[%clk 0:01:50]} 21... h6 {[%clk 0:01:11.3]} 22. Ngf3 {[%clk 0:01:46.8]}
22... bxc4 {[%clk 0:01:02.9]} 23. Bxf6 {[%clk 0:01:41.2]} 23... gxf6 {[%clk
0:01:02.1]} 24. Nxc4 {[%clk 0:01:41.6]} 24... Qxb3 {[%clk 0:01:01.7]} 25. Nxd6
{[%clk 0:01:40]} 25... Bxd6 {[%clk 0:01:00.6]} 26. Rxd6 {[%clk 0:01:39.7]} 26...
Rc3 {[%clk 0:00:57.4]} 27. Rd3 {[%clk 0:01:31.3]} 27... Rec8 {[%clk 0:00:56.2]}
28. h5 {[%clk 0:01:27.4]} 28... Ne7 {[%clk 0:00:55.2]} 29. Red1 {[%clk 0:01:27]}
29... Qxa3 {[%clk 0:00:53.1]} 30. Rxc3 {[%clk 0:01:18.4]} 30... Rxc3 {[%clk
0:00:50.7]} 31. Kf2 {[%clk 0:01:00.1]} 31... Kg7 {[%clk 0:00:46.1]} 32. Rd3
{[%clk 0:00:51.2]} 32... f5 {[%clk 0:00:45.6]} 33. Rxc3 {[%clk 0:00:50.4]} 33...
Qxc3 {[%clk 0:00:44.7]} 34. Ne5 {[%clk 0:00:30.6]} 34... Qd4+ {[%clk 0:00:30.2]}
35. Kf3 {[%clk 0:00:24.7]} 35... Bxe4+ {[%clk 0:00:29.1]} 36. Bxe4 {[%clk
0:00:24.1]} 36... Qxe4+ {[%clk 0:00:29.4]} 37. Qxe4 {[%clk 0:00:24.2]} 37...
fxe4+ {[%clk 0:00:30.3]} 38. Kxe4 {[%clk 0:00:24.6]} 38... a5 {[%clk 0:00:30.5]}
39. g4 {[%clk 0:00:22.2]} 39... Nd5 {[%clk 0:00:25.3]} 40. f5 {[%clk 0:00:17.6]}
40... a4 {[%clk 0:00:24.5]} 41. fxe6 {[%clk 0:00:14.8]} 41... fxe6 {[%clk
0:00:24.2]} 42. Nc4 {[%clk 0:00:15.2]} 42... Kf6 {[%clk 0:00:23.5]} 43. Na3
{[%clk 0:00:12]} 43... Kg5 {[%clk 0:00:23]} 44. Kf3 {[%clk 0:00:11.8]} 44... Nb4
{[%clk 0:00:15.7]} 45. Nc4 {[%clk 0:00:11.4]} 45... Nc2 {[%clk 0:00:14.8]} 46.
Ke2 {[%clk 0:00:06.8]} 46... a3 {[%clk 0:00:14.8]} 47. Kd2 {[%clk 0:00:07.3]}
47... a2 {[%clk 0:00:14]} 0-1

[Event "*** Titled Tuesday Blitz"]
[Site "Chess.com"]
[Date "2021.02.02"]
[Round "8"]
[White "KubaGepard"]
[Black "FMJoseHerrera"]
[Result "1-0"]
[WhiteElo "2342"]
[BlackElo "2471"]
[TimeControl "180+1"]
[EndTime "11:30:35 PST"]
[Termination "KubaGepard won on time"]

1. e4 {[%clk 0:03:00.9]} 1... f6 {[%clk 0:02:56.8]} 2. Nf3 {[%clk 0:02:57.2]}
2... g6 {[%clk 0:02:57]} 3. d4 {[%clk 0:02:56.2]} 3... Kf7 {[%clk 0:02:57.2]} 4.
Nc3 {[%clk 0:02:55.1]} 4... Kg7 {[%clk 0:02:56.7]} 5. h4 {[%clk 0:02:54.3]} 5...
h5 {[%clk 0:02:56.4]} 6. Bc4 {[%clk 0:02:50.2]} 6... c6 {[%clk 0:02:55]} 7. e5
{[%clk 0:02:45.6]} 7... d5 {[%clk 0:02:48.7]} 8. exd6 {[%clk 0:02:45.2]} 8...
exd6 {[%clk 0:02:48.2]} 9. d5 {[%clk 0:02:40.2]} 9... Nh6 {[%clk 0:02:47.6]} 10.
Bf4 {[%clk 0:02:33.9]} 10... b5 {[%clk 0:02:44.2]} 11. Bb3 {[%clk 0:02:31.9]}
11... c5 {[%clk 0:02:39.6]} 12. Nxb5 {[%clk 0:02:27.2]} 12... a5 {[%clk
0:02:38.9]} 13. a4 {[%clk 0:02:24.4]} 13... Nf7 {[%clk 0:02:36.3]} 14. c4 {[%clk
0:02:22.8]} 14... Na6 {[%clk 0:02:35.2]} 15. Bd2 {[%clk 0:02:09.5]} 15... Bg4
{[%clk 0:02:32.8]} 16. Bc3 {[%clk 0:02:07.9]} 16... Nb4 {[%clk 0:02:30.8]} 17.
Bxb4 {[%clk 0:02:06.1]} 17... axb4 {[%clk 0:02:30.4]} 18. Qd3 {[%clk 0:02:03.7]}
18... Qe8+ {[%clk 0:02:20.4]} 19. Kf1 {[%clk 0:02:00.3]} 19... Qd7 {[%clk
0:02:19.4]} 20. Nd2 {[%clk 0:01:53]} 20... Ne5 {[%clk 0:02:17.4]} 21. Qg3 {[%clk
0:01:52.7]} 21... Qf5 {[%clk 0:02:11]} 22. Kg1 {[%clk 0:01:39.6]} 22... Kh7
{[%clk 0:02:07.2]} 23. Kh2 {[%clk 0:01:36.6]} 23... Bh6 {[%clk 0:02:05.6]} 24.
Nxd6 {[%clk 0:01:27.5]} 24... Qd3 {[%clk 0:01:15.6]} 25. N2e4 {[%clk 0:01:20.9]}
25... Kg7 {[%clk 0:01:07.8]} 26. Nxc5 {[%clk 0:01:17.6]} 26... Qd2 {[%clk
0:01:05.7]} 27. Nde4 {[%clk 0:01:09.7]} 27... Qxb2 {[%clk 0:01:03.9]} 28. Ra2
{[%clk 0:01:00.9]} 28... Qd4 {[%clk 0:00:56.9]} 29. f3 {[%clk 0:00:59.5]} 29...
Bf5 {[%clk 0:00:46.5]} 30. Nd6 {[%clk 0:00:54.8]} 30... Qxc5 {[%clk 0:00:21]}
31. Nxf5+ {[%clk 0:00:53.2]} 31... Kh7 {[%clk 0:00:21.9]} 32. Nxh6 {[%clk
0:00:51.8]} 32... Kxh6 {[%clk 0:00:22.8]} 33. Re1 {[%clk 0:00:48.9]} 33... Rhe8
{[%clk 0:00:22.4]} 34. Rd2 {[%clk 0:00:44.7]} 34... Qd6 {[%clk 0:00:18.9]} 35.
Rc1 {[%clk 0:00:41.2]} 35... Rac8 {[%clk 0:00:16.2]} 36. Qf4+ {[%clk 0:00:39.8]}
36... Kg7 {[%clk 0:00:15.8]} 37. Kg1 {[%clk 0:00:39]} 37... Rc5 {[%clk
0:00:14.9]} 38. Qd4 {[%clk 0:00:38.5]} 38... Rec8 {[%clk 0:00:14.9]} 39. Kf2
{[%clk 0:00:35.9]} 39... R5c7 {[%clk 0:00:13.6]} 40. Rdc2 {[%clk 0:00:34.6]}
40... Rc5 {[%clk 0:00:13]} 41. a5 {[%clk 0:00:33]} 41... Kh7 {[%clk 0:00:12.3]}
42. g3 {[%clk 0:00:32]} 42... Qa6 {[%clk 0:00:10.1]} 43. d6 {[%clk 0:00:30]}
43... Qxa5 {[%clk 0:00:10]} 44. Rd1 {[%clk 0:00:26.8]} 44... Nd7 {[%clk
0:00:09.9]} 45. Qf4 {[%clk 0:00:23.5]} 45... Re5 {[%clk 0:00:09]} 46. Ra2 {[%clk
0:00:22.5]} 46... Qc5+ {[%clk 0:00:09.1]} 47. Kg2 {[%clk 0:00:22.6]} 47... Re3
{[%clk 0:00:06.9]} 48. Rd5 {[%clk 0:00:21.4]} 48... Qb6 {[%clk 0:00:04.5]} 49.
Rb5 {[%clk 0:00:21.1]} 49... Qxb5 {[%clk 0:00:01.6]} 50. cxb5 {[%clk 0:00:20.7]}
50... Rxb3 {[%clk 0:00:02.5]} 51. Ra7 {[%clk 0:00:20.2]} 51... Rd8 {[%clk
0:00:02]} 52. Qc4 {[%clk 0:00:17.3]} 1-0

[Event "*** Titled Tuesday Blitz"]
[Site "Chess.com"]
[Date "2021.02.02"]
[Round "8"]
[White "Mbneu"]
[Black "2nd_life"]
[Result "0-1"]
[WhiteElo "2297"]
[BlackElo "2457"]
[TimeControl "180+1"]
[EndTime "11:30:37 PST"]
[Termination "2nd_life won by resignation"]

1. d4 {[%clk 0:03:00.9]} 1... Nf6 {[%clk 0:02:59.8]} 2. c4 {[%clk 0:03:00.2]}
2... e6 {[%clk 0:03:00.1]} 3. Nc3 {[%clk 0:02:59.8]} 3... Bb4 {[%clk 0:03:00.1]}
4. Bg5 {[%clk 0:03:00.4]} 4... h6 {[%clk 0:02:58.8]} 5. Bh4 {[%clk 0:02:59.8]}
5... c5 {[%clk 0:02:58.6]} 6. d5 {[%clk 0:02:59.7]} 6... d6 {[%clk 0:02:56.9]}
7. e3 {[%clk 0:02:58.8]} 7... Bxc3+ {[%clk 0:02:38.7]} 8. bxc3 {[%clk
0:02:57.6]} 8... g5 {[%clk 0:02:32.3]} 9. Bg3 {[%clk 0:02:56.8]} 9... Ne4 {[%clk
0:02:31.8]} 10. dxe6 {[%clk 0:02:37.8]} 10... fxe6 {[%clk 0:02:10.5]} 11. Qh5+
{[%clk 0:02:28.8]} 11... Kd7 {[%clk 0:02:10.1]} 12. Bd3 {[%clk 0:02:20.3]} 12...
Qf6 {[%clk 0:01:54.3]} 13. Ne2 {[%clk 0:02:13.6]} 13... Nxg3 {[%clk 0:01:50.5]}
14. hxg3 {[%clk 0:02:08.6]} 14... Nc6 {[%clk 0:01:45.1]} 15. O-O {[%clk
0:02:04.6]} 15... Kc7 {[%clk 0:01:43.6]} 16. f4 {[%clk 0:01:52.2]} 16... Bd7
{[%clk 0:01:38.6]} 17. Rad1 {[%clk 0:01:40.5]} 17... Rag8 {[%clk 0:01:35.1]} 18.
Be4 {[%clk 0:01:36.8]} 18... Be8 {[%clk 0:01:24.7]} 19. Qf3 {[%clk 0:01:11.7]}
19... g4 {[%clk 0:01:17.4]} 20. Qf2 {[%clk 0:01:10.8]} 20... Na5 {[%clk
0:01:08.7]} 21. Bd3 {[%clk 0:00:54.6]} 21... h5 {[%clk 0:01:06.9]} 22. e4 {[%clk
0:00:54]} 22... b6 {[%clk 0:00:55.5]} 23. e5 {[%clk 0:00:53.4]} 23... dxe5
{[%clk 0:00:49.4]} 24. fxe5 {[%clk 0:00:52.3]} 24... Qxf2+ {[%clk 0:00:49.3]}
25. Rxf2 {[%clk 0:00:52.3]} 25... Rf8 {[%clk 0:00:47.8]} 26. Rdf1 {[%clk
0:00:47.2]} 26... Rxf2 {[%clk 0:00:47.8]} 27. Rxf2 {[%clk 0:00:48.1]} 27... Nc6
{[%clk 0:00:48.1]} 28. Nf4 {[%clk 0:00:46]} 28... Nxe5 {[%clk 0:00:48]} 29.
Nxe6+ {[%clk 0:00:41.7]} 29... Kd6 {[%clk 0:00:47.2]} 30. Bf5 {[%clk 0:00:41.8]}
30... Bd7 {[%clk 0:00:41.2]} 31. Rd2+ {[%clk 0:00:39.9]} 31... Ke7 {[%clk
0:00:37.4]} 32. Ng7 {[%clk 0:00:38]} 32... Rg8 {[%clk 0:00:27.8]} 33. Bxd7
{[%clk 0:00:36]} 33... Rxg7 {[%clk 0:00:27.9]} 34. Bb5 {[%clk 0:00:35]} 34...
Rf7 {[%clk 0:00:20.5]} 35. Rd5 {[%clk 0:00:33.1]} 35... Ke6 {[%clk 0:00:20.3]}
36. Rd8 {[%clk 0:00:29.5]} 36... Kf5 {[%clk 0:00:07.1]} 37. Rh8 {[%clk
0:00:26.1]} 37... Ke4 {[%clk 0:00:05.8]} 38. Rxh5 {[%clk 0:00:24.2]} 38... a6
{[%clk 0:00:05.2]} 39. Be8 {[%clk 0:00:19.7]} 39... Re7 {[%clk 0:00:04.6]} 40.
Rh8 {[%clk 0:00:16.6]} 40... Nxc4 {[%clk 0:00:04.2]} 41. Bg6+ {[%clk 0:00:16.5]}
41... Ke3 {[%clk 0:00:04.3]} 42. Rh4 {[%clk 0:00:15.5]} 42... Ne5 {[%clk
0:00:03.8]} 43. Bf5 {[%clk 0:00:15.2]} 43... Rf7 {[%clk 0:00:03.7]} 44. Bxg4
{[%clk 0:00:14.7]} 44... Nxg4 {[%clk 0:00:03.3]} 45. Rxg4 {[%clk 0:00:15]} 45...
Kd3 {[%clk 0:00:04.2]} 46. Rg6 {[%clk 0:00:14.9]} 46... Rb7 {[%clk 0:00:04.3]}
47. g4 {[%clk 0:00:13.8]} 47... Kxc3 {[%clk 0:00:04.8]} 48. g5 {[%clk
0:00:14.2]} 48... c4 {[%clk 0:00:05.4]} 49. Rf6 {[%clk 0:00:14.8]} 49... Kb2
{[%clk 0:00:05.4]} 50. g6 {[%clk 0:00:15.2]} 50... c3 {[%clk 0:00:05.2]} 51. Rf7
{[%clk 0:00:15.2]} 51... c2 {[%clk 0:00:05.4]} 52. Rxb7 {[%clk 0:00:14.3]} 52...
c1=Q+ {[%clk 0:00:05.9]} 53. Kh2 {[%clk 0:00:14.9]} 53... Qh6+ {[%clk
0:00:05.9]} 54. Kg1 {[%clk 0:00:15.2]} 54... Qxg6 {[%clk 0:00:06.8]} 55. Rd7
{[%clk 0:00:13.9]} 55... Kxa2 {[%clk 0:00:07]} 56. Rd2+ {[%clk 0:00:13.3]} 56...
Kb3 {[%clk 0:00:07.4]} 0-1

[Event "*** Titled Tuesday Blitz"]
[Site "Chess.com"]
[Date "2021.02.02"]
[Round "8"]
[White "adriangschnitzer"]
[Black "Piotrek1979"]
[Result "0-1"]
[WhiteElo "2475"]
[BlackElo "2346"]
[TimeControl "180+1"]
[EndTime "11:30:38 PST"]
[Termination "Piotrek1979 won by resignation"]

1. e4 {[%clk 0:02:57.6]} 1... c6 {[%clk 0:02:59.6]} 2. d4 {[%clk 0:02:57.2]}
2... d5 {[%clk 0:02:59.7]} 3. e5 {[%clk 0:02:57.8]} 3... Bf5 {[%clk 0:02:57.9]}
4. Nf3 {[%clk 0:02:58.2]} 4... e6 {[%clk 0:02:57.6]} 5. Be2 {[%clk 0:02:58.8]}
5... Ne7 {[%clk 0:02:54.8]} 6. O-O {[%clk 0:02:59.2]} 6... Nd7 {[%clk
0:02:53.6]} 7. Nbd2 {[%clk 0:02:58.4]} 7... h6 {[%clk 0:02:51.5]} 8. a4 {[%clk
0:02:58.5]} 8... g5 {[%clk 0:02:42.6]} 9. a5 {[%clk 0:02:56.3]} 9... Bg7 {[%clk
0:02:40.3]} 10. c4 {[%clk 0:02:55.5]} 10... Ng6 {[%clk 0:02:35.1]} 11. Ne1
{[%clk 0:02:52.2]} 11... h5 {[%clk 0:02:16.7]} 12. Bxh5 {[%clk 0:02:50.7]} 12...
Nf4 {[%clk 0:02:11.1]} 13. Bg4 {[%clk 0:02:43.7]} 13... Bxg4 {[%clk 0:02:10]}
14. Qxg4 {[%clk 0:02:44.6]} 14... Rh4 {[%clk 0:02:08.2]} 15. Qf3 {[%clk
0:02:44]} 15... Qe7 {[%clk 0:01:53.8]} 16. Nd3 {[%clk 0:02:43.1]} 16... O-O-O
{[%clk 0:01:41.2]} 17. b4 {[%clk 0:02:32.8]} 17... Rdh8 {[%clk 0:01:35.5]} 18.
Nxf4 {[%clk 0:02:31.2]} 18... Rxf4 {[%clk 0:01:23.6]} 19. Qg3 {[%clk 0:02:27.8]}
19... Rxd4 {[%clk 0:01:21.3]} 20. cxd5 {[%clk 0:02:24.7]} 20... Bxe5 {[%clk
0:01:18]} 21. dxc6 {[%clk 0:02:22.5]} 21... Bxg3 {[%clk 0:01:09.8]} 22. cxd7+
{[%clk 0:02:21.1]} 22... Qxd7 {[%clk 0:01:10.7]} 23. hxg3 {[%clk 0:02:18.4]}
23... Rxd2 {[%clk 0:00:50.6]} 24. Bxd2 {[%clk 0:02:19.3]} 24... Qxd2 {[%clk
0:00:49.9]} 25. b5 {[%clk 0:02:14.5]} 25... g4 {[%clk 0:00:47.9]} 26. b6 {[%clk
0:02:06.1]} 26... Qh6 {[%clk 0:00:44.8]} 27. Rfc1+ {[%clk 0:02:05.8]} 27... Kb8
{[%clk 0:00:44.4]} 28. Kf1 {[%clk 0:02:05]} 28... Qh1+ {[%clk 0:00:38.9]} 29.
Ke2 {[%clk 0:02:04.3]} 29... Qxg2 {[%clk 0:00:39.8]} 30. Ra3 {[%clk 0:01:32.7]}
30... Rd8 {[%clk 0:00:27.7]} 31. a6 {[%clk 0:01:25.8]} 31... Qe4+ {[%clk
0:00:24.4]} 32. Re3 {[%clk 0:01:21.3]} 32... Qa4 {[%clk 0:00:22.4]} 33. bxa7+
{[%clk 0:01:18.9]} 33... Kxa7 {[%clk 0:00:21.5]} 34. axb7 {[%clk 0:01:18.1]}
34... Qb5+ {[%clk 0:00:19.9]} 35. Ke1 {[%clk 0:01:15]} 35... Kb8 {[%clk
0:00:19.5]} 36. Rec3 {[%clk 0:01:08]} 36... Qb4 {[%clk 0:00:18.7]} 37. Kf1
{[%clk 0:01:00]} 37... Rd1+ {[%clk 0:00:17.7]} 38. Rxd1 {[%clk 0:00:58.8]} 38...
Qxc3 {[%clk 0:00:17.4]} 39. Rd7 {[%clk 0:00:59.7]} 39... f5 {[%clk 0:00:16.4]}
40. Re7 {[%clk 0:00:58.1]} 40... Qc1+ {[%clk 0:00:15.4]} 41. Kg2 {[%clk
0:00:55.9]} 41... Qc6+ {[%clk 0:00:16.3]} 42. Kf1 {[%clk 0:00:53.8]} 42... Qd5
{[%clk 0:00:16.8]} 43. Ke2 {[%clk 0:00:49.1]} 43... e5 {[%clk 0:00:16.3]} 44.
Kf1 {[%clk 0:00:47.1]} 44... f4 {[%clk 0:00:14.9]} 45. gxf4 {[%clk 0:00:42.7]}
45... exf4 {[%clk 0:00:15.8]} 46. Rg7 {[%clk 0:00:42.7]} 46... Qd1+ {[%clk
0:00:14.4]} 47. Kg2 {[%clk 0:00:42]} 47... Qf3+ {[%clk 0:00:15.3]} 48. Kg1
{[%clk 0:00:40.3]} 48... g3 {[%clk 0:00:14.6]} 49. fxg3 {[%clk 0:00:37.2]} 49...
Qd1+ {[%clk 0:00:12.5]} 50. Kf2 {[%clk 0:00:29.5]} 50... Qd2+ {[%clk 0:00:11.3]}
51. Kg1 {[%clk 0:00:25.1]} 51... Qd4+ {[%clk 0:00:10]} 52. Kh2 {[%clk
0:00:19.2]} 52... Qxg7 {[%clk 0:00:10.9]} 53. gxf4 {[%clk 0:00:19.1]} 53... Qg4
{[%clk 0:00:10.7]} 54. f5 {[%clk 0:00:20]} 54... Kxb7 {[%clk 0:00:09.9]} 55. f6
{[%clk 0:00:20.9]} 55... Qg6 {[%clk 0:00:09.1]} 56. f7 {[%clk 0:00:21.8]} 56...
Qxf7 {[%clk 0:00:08.9]} 0-1